[Event "Titled Tuesday Blitz July 11 Early 2023"]
[White "Ganiev, Roman"]
[Black "Gaal, Zsoka"]
[WhiteFideId "4131452"]
[BlackFideId "777765"]
[WhiteElo "2562"]
[BlackElo "2426"]
[Result "1-0"]
[Round "7"]
[TimeControl "180+2"]
[Date "2023.07.11"]
[WhiteClock "0:00:05"]
[BlackClock "0:00:02"]
[Board "98"]

1. e4 {[%clk 0:02:55]}  c6 {[%clk 0:02:58]} 2. d4 {[%clk 0:02:48]}  g6 {[%clk 0:02:59]} 3. Nc3 {[%clk 0:02:48]}  d5 {[%clk 0:02:58]} 4. Be3 {[%clk 0:02:47]}  Bg7 {[%clk 0:02:58]} 5. Qd2 {[%clk 0:02:48]}  dxe4 {[%clk 0:02:57]} 6. Nxe4 {[%clk 0:02:48]}  Nd7 {[%clk 0:02:57]} 7. O-O-O {[%clk 0:02:48]}  Ngf6 {[%clk 0:02:39]} 8. Nxf6+ {[%clk 0:02:47]}  Nxf6 {[%clk 0:02:40]} 9. h4 {[%clk 0:02:47]}  h5 {[%clk 0:02:32]} 10. Bc4 {[%clk 0:02:46]}  Ng4 {[%clk 0:02:31]} 11. Nh3 {[%clk 0:02:45]}  Nxe3 {[%clk 0:02:29]} 12. Qxe3 {[%clk 0:02:45]}  Bh6 {[%clk 0:02:27]} 13. Ng5 {[%clk 0:01:53]}  f6 {[%clk 0:01:40]} 14. Bf7+ {[%clk 0:01:53]}  Kd7 {[%clk 0:01:05]} 15. d5 {[%clk 0:01:53]}  Kc7 {[%clk 0:00:46]} 16. dxc6 {[%clk 0:01:50]}  Qf8 {[%clk 0:00:40]} 17. cxb7 {[%clk 0:01:43]}  Bxb7 {[%clk 0:00:35]} 18. Qc5+ {[%clk 0:01:42]}  Bc6 {[%clk 0:00:34]} 19. Bd5 {[%clk 0:01:11]}  Qe8 {[%clk 0:00:33]} 20. Rhe1 {[%clk 0:00:54]}  e5 {[%clk 0:00:33]} 21. Kb1 {[%clk 0:00:20]}  fxg5 {[%clk 0:00:33]} 22. Be4 {[%clk 0:00:13]}  Qe6 {[%clk 0:00:27]} 23. hxg5 {[%clk 0:00:09]}  Bf8 {[%clk 0:00:22]} 24. Qa5+ {[%clk 0:00:09]}  Kb7 {[%clk 0:00:18]} 25. Qb5+ {[%clk 0:00:08]}  Kc7 {[%clk 0:00:17]} 26. Bxc6 {[%clk 0:00:08]}  Qxc6 {[%clk 0:00:17]} 27. Qxe5+ {[%clk 0:00:08]}  Bd6 {[%clk 0:00:16]} 28. Qg7+ {[%clk 0:00:08]}  Qd7 {[%clk 0:00:09]} 29. Qxg6 {[%clk 0:00:05]}  Rhe8 {[%clk 0:00:10]} 30. Rf1 {[%clk 0:00:02]}  Rab8 {[%clk 0:00:06]} 31. Qxh5 {[%clk 0:00:02]}  Qb5 {[%clk 0:00:04]} 32. b3 {[%clk 0:00:03]}  Qe5 {[%clk 0:00:04]} 33. Qh7+ {[%clk 0:00:03]}  Kc6 {[%clk 0:00:03]} 34. Qd3 {[%clk 0:00:03]}  Ba3 {[%clk 0:00:03]} 35. Qa6+ {[%clk 0:00:03]}  Rb6 {[%clk 0:00:02]} 36. Qxa3 {[%clk 0:00:04]}  Rc8 {[%clk 0:00:02]} 37. Rfe1 {[%clk 0:00:04]}  Qxg5 {[%clk 0:00:01]} 38. Re6+ {[%clk 0:00:04]}  Kb7 {[%clk 0:00:02]} 39. Re7+ {[%clk 0:00:05]}  Kc6 {[%clk 0:00:01]} 40. Rde1 {[%clk 0:00:03]}  Qf5 {[%clk 0:00:01]} 41. R1e6+ {[%clk 0:00:04]}  Kb5 {[%clk 0:00:01]} 42. Qa4+ {[%clk 0:00:04]}  Kc5 {[%clk 0:00:02]} 43. Qc4# {[%clk 0:00:05]} 1-0


[Site "https://www.chess.com"]

[Event "Titled Tuesday Blitz July 11 Early 2023"]
[White "Dinosaurio_1975"]
[Black "Matveeva, Olga"]
[BlackFideId "24107018"]
[WhiteElo "2560"]
[BlackElo "2423"]
[Result "1-0"]
[Round "7"]
[TimeControl "180+2"]
[Date "2023.07.11"]
[WhiteClock "0:00:51"]
[BlackClock "0:00:17"]
[Board "99"]

1. e4 {[%clk 0:03:00]}  e6 {[%clk 0:03:00]} 2. d4 {[%clk 0:03:00]}  d5 {[%clk 0:03:00]} 3. e5 {[%clk 0:03:00]}  c5 {[%clk 0:03:00]} 4. c3 {[%clk 0:03:01]}  Nc6 {[%clk 0:03:00]} 5. Nf3 {[%clk 0:03:02]}  Qb6 {[%clk 0:03:00]} 6. a3 {[%clk 0:03:02]}  Nh6 {[%clk 0:03:00]} 7. Bd3 {[%clk 0:02:59]}  Nf5 {[%clk 0:02:52]} 8. O-O {[%clk 0:02:58]}  Bd7 {[%clk 0:02:48]} 9. dxc5 {[%clk 0:02:51]}  Bxc5 {[%clk 0:02:47]} 10. b4 {[%clk 0:02:51]}  Be7 {[%clk 0:02:45]} 11. Bxf5 {[%clk 0:02:49]}  exf5 {[%clk 0:02:45]} 12. Qxd5 {[%clk 0:02:49]}  Be6 {[%clk 0:02:44]} 13. Qd3 {[%clk 0:02:45]}  Rd8 {[%clk 0:02:42]} 14. Qe2 {[%clk 0:02:45]}  O-O {[%clk 0:02:40]} 15. Bf4 {[%clk 0:02:41]}  Rd7 {[%clk 0:02:29]} 16. Nbd2 {[%clk 0:02:40]}  Rfd8 {[%clk 0:02:28]} 17. Rfd1 {[%clk 0:02:41]}  h6 {[%clk 0:02:21]} 18. Nf1 {[%clk 0:01:58]}  Rxd1 {[%clk 0:02:13]} 19. Rxd1 {[%clk 0:01:59]}  Rxd1 {[%clk 0:02:12]} 20. Qxd1 {[%clk 0:02:00]}  Bc4 {[%clk 0:02:11]} 21. Ne3 {[%clk 0:01:59]}  Qa6 {[%clk 0:02:06]} 22. h4 {[%clk 0:01:55]}  Be2 {[%clk 0:02:03]} 23. Qd5 {[%clk 0:01:52]}  Qxa3 {[%clk 0:01:55]} 24. Nxf5 {[%clk 0:01:47]}  Bf8 {[%clk 0:01:49]} 25. e6 {[%clk 0:01:25]}  Qa1+ {[%clk 0:01:20]} 26. Kh2 {[%clk 0:01:23]}  Qf1 {[%clk 0:01:10]} 27. exf7+ {[%clk 0:01:20]}  Kh8 {[%clk 0:01:10]} 28. Qd6 {[%clk 0:00:53]}  Bxd6 {[%clk 0:00:56]} 29. Bxd6 {[%clk 0:00:54]}  Bxf3 {[%clk 0:00:17]} 30. f8=Q+ {[%clk 0:00:51]} 1-0


[Site "https://www.chess.com"]

[Event "Titled Tuesday Blitz July 11 Early 2023"]
[White "Llanos, Guillermo"]
[Black "Orlov, Georgi"]
[WhiteFideId "100358"]
[BlackFideId "2011271"]
[WhiteElo "2400"]
[BlackElo "2546"]
[Result "0-1"]
[Round "7"]
[TimeControl "180+2"]
[Date "2023.07.11"]
[WhiteClock "0:00:25"]
[BlackClock "0:01:38"]
[Board "102"]

1. c4 {[%clk 0:03:00]}  Nf6 {[%clk 0:02:58]} 2. Nc3 {[%clk 0:03:00]}  Nc6 {[%clk 0:02:56]} 3. g3 {[%clk 0:02:50]}  d5 {[%clk 0:02:56]} 4. cxd5 {[%clk 0:02:47]}  Nxd5 {[%clk 0:02:56]} 5. Bg2 {[%clk 0:02:48]}  Nb6 {[%clk 0:02:56]} 6. Nf3 {[%clk 0:02:47]}  e5 {[%clk 0:02:56]} 7. O-O {[%clk 0:02:45]}  Be6 {[%clk 0:02:54]} 8. a3 {[%clk 0:02:44]}  Be7 {[%clk 0:02:48]} 9. b4 {[%clk 0:02:43]}  a5 {[%clk 0:02:45]} 10. b5 {[%clk 0:02:41]}  Nd4 {[%clk 0:02:45]} 11. Rb1 {[%clk 0:02:30]}  f6 {[%clk 0:02:41]} 12. Nxd4 {[%clk 0:02:22]}  exd4 {[%clk 0:02:40]} 13. Ne4 {[%clk 0:02:21]}  d3 {[%clk 0:02:34]} 14. exd3 {[%clk 0:02:17]}  Qxd3 {[%clk 0:02:30]} 15. Bb2 {[%clk 0:01:59]}  O-O {[%clk 0:02:24]} 16. Nc3 {[%clk 0:01:48]}  Nc4 {[%clk 0:02:14]} 17. Be4 {[%clk 0:01:37]}  Qxd2 {[%clk 0:02:05]} 18. Qh5 {[%clk 0:01:34]}  f5 {[%clk 0:02:05]} 19. Rfd1 {[%clk 0:01:22]}  Qg5 {[%clk 0:01:57]} 20. Qxg5 {[%clk 0:01:21]}  Bxg5 {[%clk 0:01:57]} 21. Bxb7 {[%clk 0:01:21]}  Rad8 {[%clk 0:01:55]} 22. Bd5 {[%clk 0:01:12]}  Bxd5 {[%clk 0:01:53]} 23. Nxd5 {[%clk 0:01:10]}  Nd2 {[%clk 0:01:49]} 24. Nxc7 {[%clk 0:00:55]}  Nxb1 {[%clk 0:01:49]} 25. Rxb1 {[%clk 0:00:55]}  Rd6 {[%clk 0:01:46]} 26. b6 {[%clk 0:00:48]}  Rxb6 {[%clk 0:01:43]} 27. Nd5 {[%clk 0:00:43]}  Rb7 {[%clk 0:01:43]} 28. h4 {[%clk 0:00:25]}  Bf6 {[%clk 0:01:38]} 0-1


[Site "https://www.chess.com"]

[Event "Titled Tuesday Blitz July 11 Early 2023"]
[White "Rottenwohrer Suarez, Juan"]
[Black "a-z30"]
[WhiteFideId "32068182"]
[WhiteElo "2545"]
[BlackElo "2394"]
[Result "1/2-1/2"]
[Round "7"]
[TimeControl "180+2"]
[Date "2023.07.11"]
[WhiteClock "0:00:02"]
[BlackClock "0:00:07"]
[Board "103"]

1. c4 {[%clk 0:03:00]}  e6 {[%clk 0:02:59]} 2. Nf3 {[%clk 0:02:54]}  Nf6 {[%clk 0:02:58]} 3. g3 {[%clk 0:02:54]}  d5 {[%clk 0:02:50]} 4. Bg2 {[%clk 0:02:55]}  c5 {[%clk 0:02:50]} 5. cxd5 {[%clk 0:02:55]}  exd5 {[%clk 0:02:50]} 6. d4 {[%clk 0:02:55]}  Nc6 {[%clk 0:02:50]} 7. O-O {[%clk 0:02:55]}  Be7 {[%clk 0:02:50]} 8. Nc3 {[%clk 0:02:56]}  O-O {[%clk 0:02:50]} 9. Bg5 {[%clk 0:02:56]}  c4 {[%clk 0:02:48]} 10. Ne5 {[%clk 0:02:56]}  h6 {[%clk 0:02:47]} 11. Bxf6 {[%clk 0:02:48]}  Bxf6 {[%clk 0:02:47]} 12. f4 {[%clk 0:02:48]}  Qb6 {[%clk 0:01:37]} 13. Nxd5 {[%clk 0:02:40]}  Qxd4+ {[%clk 0:01:32]} 14. Qxd4 {[%clk 0:02:32]}  Nxd4 {[%clk 0:01:32]} 15. Nxf6+ {[%clk 0:02:33]}  gxf6 {[%clk 0:01:32]} 16. Nxc4 {[%clk 0:02:34]}  Be6 {[%clk 0:01:20]} 17. Nd6 {[%clk 0:02:10]}  Rad8 {[%clk 0:01:12]} 18. Nxb7 {[%clk 0:02:03]}  Nxe2+ {[%clk 0:01:11]} 19. Kh1 {[%clk 0:02:02]}  Rd2 {[%clk 0:01:07]} 20. b4 {[%clk 0:01:47]}  Bxa2 {[%clk 0:00:58]} 21. Nc5 {[%clk 0:01:39]}  Rfd8 {[%clk 0:00:47]} 22. Ne4 {[%clk 0:01:31]}  Rb2 {[%clk 0:00:27]} 23. Nxf6+ {[%clk 0:01:24]}  Kg7 {[%clk 0:00:25]} 24. Nh5+ {[%clk 0:01:25]}  Kg6 {[%clk 0:00:16]} 25. g4 {[%clk 0:01:25]}  Rdd2 {[%clk 0:00:13]} 26. Be4+ {[%clk 0:00:22]}  f5 {[%clk 0:00:13]} 27. Bxf5+ {[%clk 0:00:23]}  Kf7 {[%clk 0:00:12]} 28. Be4 {[%clk 0:00:23]}  Nc3 {[%clk 0:00:10]} 29. Bf3 {[%clk 0:00:15]}  Rxh2+ {[%clk 0:00:09]} 30. Kg1 {[%clk 0:00:15]}  Rhd2 {[%clk 0:00:09]} 31. Ng3 {[%clk 0:00:04]}  Bd5 {[%clk 0:00:08]} 32. Bxd5+ {[%clk 0:00:01]}  Nxd5 {[%clk 0:00:07]} 33. Rxa7+ {[%clk 0:00:02]}  Kf8 {[%clk 0:00:07]} 34. Ra8+ {[%clk 0:00:02]}  Kf7 {[%clk 0:00:08]} 35. Ra7+ {[%clk 0:00:02]}  Kf8 {[%clk 0:00:08]} 36. Ra8+ {[%clk 0:00:03]}  Kf7 {[%clk 0:00:07]} 37. Ra7+ {[%clk 0:00:02]} 1/2-1/2


[Site "https://www.chess.com"]

[Event "Titled Tuesday Blitz July 11 Early 2023"]
[White "Kumala, Aleksander"]
[Black "MAHanif"]
[WhiteFideId "1141880"]
[WhiteElo "2542"]
[BlackElo "2392"]
[Result "1-0"]
[Round "7"]
[TimeControl "180+2"]
[Date "2023.07.11"]
[WhiteClock "0:00:56"]
[BlackClock "0:00:11"]
[Board "104"]

1. d4 {[%clk 0:02:59]}  Nf6 {[%clk 0:03:00]} 2. Bg5 {[%clk 0:02:59]}  e6 {[%clk 0:03:00]} 3. Nd2 {[%clk 0:02:59]}  Be7 {[%clk 0:03:01]} 4. e3 {[%clk 0:02:59]}  d5 {[%clk 0:03:00]} 5. Bd3 {[%clk 0:02:59]}  c5 {[%clk 0:03:00]} 6. c3 {[%clk 0:02:59]}  Nc6 {[%clk 0:02:59]} 7. f4 {[%clk 0:03:00]}  Bd7 {[%clk 0:03:00]} 8. Ngf3 {[%clk 0:03:00]}  Rc8 {[%clk 0:03:00]} 9. O-O {[%clk 0:03:00]}  Qb6 {[%clk 0:03:00]} 10. Ne5 {[%clk 0:03:00]}  cxd4 {[%clk 0:03:00]} 11. cxd4 {[%clk 0:02:50]}  h6 {[%clk 0:02:47]} 12. Bxf6 {[%clk 0:02:50]}  Bxf6 {[%clk 0:02:44]} 13. Nxd7 {[%clk 0:02:50]}  Kxd7 {[%clk 0:02:44]} 14. f5 {[%clk 0:02:50]}  Nxd4 {[%clk 0:02:39]} 15. fxe6+ {[%clk 0:02:50]}  Nxe6 {[%clk 0:02:38]} 16. Nb3 {[%clk 0:02:40]}  Qxe3+ {[%clk 0:02:37]} 17. Kh1 {[%clk 0:02:41]}  Ke7 {[%clk 0:02:19]} 18. Bf5 {[%clk 0:02:33]}  Rhd8 {[%clk 0:02:15]} 19. Qh5 {[%clk 0:02:26]}  Qg5 {[%clk 0:02:07]} 20. Qh3 {[%clk 0:02:22]}  Rc4 {[%clk 0:01:55]} 21. Rae1 {[%clk 0:02:17]}  Rd6 {[%clk 0:01:44]} 22. Na5 {[%clk 0:02:03]}  Rb4 {[%clk 0:01:37]} 23. Qa3 {[%clk 0:01:57]}  Qd2 {[%clk 0:01:32]} 24. Nb3 {[%clk 0:01:49]}  Bxb2 {[%clk 0:01:20]} 25. Qxa7 {[%clk 0:01:43]}  Qc3 {[%clk 0:01:06]} 26. Qb8 {[%clk 0:01:28]}  Rxb3 {[%clk 0:00:15]} 27. axb3 {[%clk 0:01:26]}  Qxb3 {[%clk 0:00:16]} 28. Bxe6 {[%clk 0:01:22]}  Rxe6 {[%clk 0:00:15]} 29. Rxe6+ {[%clk 0:01:21]}  fxe6 {[%clk 0:00:13]} 30. Qc7+ {[%clk 0:01:06]}  Ke8 {[%clk 0:00:11]} 31. Qc8+ {[%clk 0:00:57]}  Ke7 {[%clk 0:00:11]} 32. Qf8+ {[%clk 0:00:57]}  Kd7 {[%clk 0:00:11]} 33. Rf7+ {[%clk 0:00:58]}  Kc6 {[%clk 0:00:11]} 34. Qc8+ {[%clk 0:00:56]}  Kd6 {[%clk 0:00:11]} 35. Qc7# {[%clk 0:00:56]} 1-0


[Site "https://www.chess.com"]

[Event "Titled Tuesday Blitz July 11 Early 2023"]
[White "Jaskolka, Tomasz"]
[Black "Mejia, Cherry Ann"]
[WhiteFideId "1170791"]
[BlackFideId "5206880"]
[WhiteElo "2539"]
[BlackElo "2388"]
[Result "0-1"]
[Round "7"]
[TimeControl "180+2"]
[Date "2023.07.11"]
[WhiteClock "0:00:07"]
[BlackClock "0:00:46"]
[Board "106"]

1. d4 {[%clk 0:03:00]}  d5 {[%clk 0:02:58]} 2. Nc3 {[%clk 0:03:00]}  Nf6 {[%clk 0:02:57]} 3. Bf4 {[%clk 0:03:00]}  a6 {[%clk 0:02:55]} 4. e3 {[%clk 0:02:58]}  c5 {[%clk 0:02:55]} 5. dxc5 {[%clk 0:02:54]}  Nc6 {[%clk 0:02:54]} 6. Nf3 {[%clk 0:02:52]}  Bg4 {[%clk 0:02:52]} 7. Be2 {[%clk 0:02:35]}  e6 {[%clk 0:02:52]} 8. Na4 {[%clk 0:02:28]}  Bxc5 {[%clk 0:02:48]} 9. Nxc5 {[%clk 0:02:28]}  Qa5+ {[%clk 0:02:48]} 10. c3 {[%clk 0:02:29]}  Qxc5 {[%clk 0:02:49]} 11. O-O {[%clk 0:02:29]}  O-O {[%clk 0:02:48]} 12. Ne5 {[%clk 0:02:25]}  Bxe2 {[%clk 0:02:44]} 13. Qxe2 {[%clk 0:02:26]}  Rac8 {[%clk 0:02:42]} 14. Rac1 {[%clk 0:02:21]}  b5 {[%clk 0:02:41]} 15. Rfd1 {[%clk 0:02:17]}  Rfd8 {[%clk 0:02:39]} 16. Qf3 {[%clk 0:02:12]}  Ne4 {[%clk 0:02:29]} 17. Nxf7 {[%clk 0:01:41]}  Rf8 {[%clk 0:02:28]} 18. Nh6+ {[%clk 0:01:00]}  gxh6 {[%clk 0:02:25]} 19. Qg4+ {[%clk 0:01:01]}  Kh8 {[%clk 0:02:14]} 20. Qxe6 {[%clk 0:00:59]}  Rce8 {[%clk 0:02:09]} 21. Qxh6 {[%clk 0:00:43]}  Rf6 {[%clk 0:02:03]} 22. Qh5 {[%clk 0:00:40]}  Rd8 {[%clk 0:01:44]} 23. Rc2 {[%clk 0:00:18]}  b4 {[%clk 0:01:38]} 24. Rdc1 {[%clk 0:00:16]}  bxc3 {[%clk 0:01:36]} 25. bxc3 {[%clk 0:00:16]}  Rdf8 {[%clk 0:01:21]} 26. c4 {[%clk 0:00:15]}  d4 {[%clk 0:01:19]} 27. Qxc5 {[%clk 0:00:12]}  Nxc5 {[%clk 0:01:20]} 28. exd4 {[%clk 0:00:07]}  Nd3 {[%clk 0:01:18]} 29. Bg5 {[%clk 0:00:06]}  Rf5 {[%clk 0:01:13]} 30. Bh6 {[%clk 0:00:04]}  R8f6 {[%clk 0:01:13]} 31. Be3 {[%clk 0:00:04]}  Nxc1 {[%clk 0:01:12]} 32. Rxc1 {[%clk 0:00:05]}  Ra5 {[%clk 0:00:59]} 33. Rc2 {[%clk 0:00:05]}  Nb4 {[%clk 0:00:58]} 34. Re2 {[%clk 0:00:03]}  Rxa2 {[%clk 0:00:56]} 35. Re1 {[%clk 0:00:04]}  Nd3 {[%clk 0:00:56]} 36. Rd1 {[%clk 0:00:04]}  Nb2 {[%clk 0:00:55]} 37. Rb1 {[%clk 0:00:04]}  Nxc4 {[%clk 0:00:55]} 38. d5 {[%clk 0:00:04]}  Nxe3 {[%clk 0:00:55]} 39. fxe3 {[%clk 0:00:04]}  Rff2 {[%clk 0:00:54]} 40. Rb8+ {[%clk 0:00:03]}  Kg7 {[%clk 0:00:54]} 41. Rb7+ {[%clk 0:00:04]}  Kg6 {[%clk 0:00:55]} 42. d6 {[%clk 0:00:05]}  Rxg2+ {[%clk 0:00:55]} 43. Kf1 {[%clk 0:00:05]}  Rxh2 {[%clk 0:00:54]} 44. Kg1 {[%clk 0:00:06]}  Rhd2 {[%clk 0:00:53]} 45. Rb1 {[%clk 0:00:05]}  Rxd6 {[%clk 0:00:53]} 46. e4 {[%clk 0:00:06]}  Re6 {[%clk 0:00:53]} 47. Re1 {[%clk 0:00:05]}  Ra4 {[%clk 0:00:52]} 48. e5 {[%clk 0:00:05]}  Ra5 {[%clk 0:00:53]} 49. Kh2 {[%clk 0:00:05]}  Raxe5 {[%clk 0:00:53]} 50. Rg1+ {[%clk 0:00:06]}  Rg5 {[%clk 0:00:53]} 51. Ra1 {[%clk 0:00:06]}  a5 {[%clk 0:00:52]} 52. Kh3 {[%clk 0:00:06]}  Re4 {[%clk 0:00:52]} 53. Ra3 {[%clk 0:00:06]}  a4 {[%clk 0:00:53]} 54. Ra2 {[%clk 0:00:06]}  Rb4 {[%clk 0:00:53]} 55. Re2 {[%clk 0:00:06]}  Kh5 {[%clk 0:00:50]} 56. Ra2 {[%clk 0:00:05]}  Rb3+ {[%clk 0:00:50]} 57. Kh2 {[%clk 0:00:05]}  a3 {[%clk 0:00:51]} 58. Rd2 {[%clk 0:00:04]}  Rb2 {[%clk 0:00:50]} 59. Kh1 {[%clk 0:00:04]}  Rb1+ {[%clk 0:00:45]} 60. Kh2 {[%clk 0:00:04]}  Rgb5 {[%clk 0:00:45]} 61. Kh3 {[%clk 0:00:04]}  R5b3+ {[%clk 0:00:44]} 62. Kg2 {[%clk 0:00:02]}  R1b2 {[%clk 0:00:44]} 63. Rxb2 {[%clk 0:00:02]}  Rxb2+ {[%clk 0:00:44]} 64. Kf3 {[%clk 0:00:02]}  a2 {[%clk 0:00:44]} 65. Ke4 {[%clk 0:00:03]}  a1=Q {[%clk 0:00:44]} 66. Kf3 {[%clk 0:00:04]}  Qa3+ {[%clk 0:00:44]} 67. Ke4 {[%clk 0:00:05]}  Rb4+ {[%clk 0:00:44]} 68. Kd5 {[%clk 0:00:05]}  Qa5+ {[%clk 0:00:45]} 69. Kc6 {[%clk 0:00:06]}  Rb6+ {[%clk 0:00:45]} 70. Kd7 {[%clk 0:00:07]}  Qa7+ {[%clk 0:00:45]} 71. Kc8 {[%clk 0:00:07]}  Rb8# {[%clk 0:00:46]} 0-1


[Site "https://www.chess.com"]

[Event "Titled Tuesday Blitz July 11 Early 2023"]
[White "Sidletskyi, Ivan"]
[Black "Harriott, Tyrell"]
[WhiteFideId "14156024"]
[BlackFideId "2086484"]
[WhiteElo "2529"]
[BlackElo "2385"]
[Result "1-0"]
[Round "7"]
[TimeControl "180+2"]
[Date "2023.07.11"]
[WhiteClock "0:00:27"]
[BlackClock "0:00:12"]
[Board "108"]

1. e4 {[%clk 0:03:00]}  d5 {[%clk 0:02:58]} 2. exd5 {[%clk 0:03:01]}  Nf6 {[%clk 0:02:57]} 3. c4 {[%clk 0:02:58]}  c6 {[%clk 0:02:56]} 4. d4 {[%clk 0:02:54]}  cxd5 {[%clk 0:02:53]} 5. Nc3 {[%clk 0:02:55]}  Nc6 {[%clk 0:02:49]} 6. Nf3 {[%clk 0:02:54]}  Bf5 {[%clk 0:02:44]} 7. Qb3 {[%clk 0:02:52]}  Qb6 {[%clk 0:02:31]} 8. cxd5 {[%clk 0:02:29]}  Nxd4 {[%clk 0:02:06]} 9. Nxd4 {[%clk 0:02:23]}  Qxd4 {[%clk 0:02:05]} 10. Be3 {[%clk 0:02:23]}  Qe5 {[%clk 0:01:58]} 11. Qxb7 {[%clk 0:02:20]}  Rd8 {[%clk 0:01:54]} 12. Bb5+ {[%clk 0:02:07]}  Bd7 {[%clk 0:01:53]} 13. O-O {[%clk 0:02:07]}  g6 {[%clk 0:01:50]} 14. Bxa7 {[%clk 0:02:02]}  Bg7 {[%clk 0:01:47]} 15. Rae1 {[%clk 0:01:58]}  Qd6 {[%clk 0:01:43]} 16. b4 {[%clk 0:01:46]}  Ng4 {[%clk 0:01:39]} 17. Bxd7+ {[%clk 0:01:38]}  Rxd7 {[%clk 0:01:36]} 18. Qc8+ {[%clk 0:01:38]}  Rd8 {[%clk 0:01:33]} 19. Qxg4 {[%clk 0:01:38]}  Bxc3 {[%clk 0:01:32]} 20. Bc5 {[%clk 0:01:38]}  Bxe1 {[%clk 0:01:26]} 21. Bxd6 {[%clk 0:01:35]}  Rxd6 {[%clk 0:01:25]} 22. Rxe1 {[%clk 0:01:35]}  O-O {[%clk 0:01:23]} 23. Rxe7 {[%clk 0:01:34]}  Rxd5 {[%clk 0:01:22]} 24. g3 {[%clk 0:01:34]}  Rfd8 {[%clk 0:01:20]} 25. Re4 {[%clk 0:01:31]}  f5 {[%clk 0:01:18]} 26. Qe2 {[%clk 0:01:26]}  fxe4 {[%clk 0:01:18]} 27. Qxe4 {[%clk 0:01:27]}  Kf7 {[%clk 0:01:03]} 28. a4 {[%clk 0:01:25]}  Kf6 {[%clk 0:01:02]} 29. b5 {[%clk 0:01:24]}  R8d6 {[%clk 0:01:02]} 30. b6 {[%clk 0:01:21]}  Re5 {[%clk 0:01:02]} 31. Qf4+ {[%clk 0:01:20]}  Ke6 {[%clk 0:01:03]} 32. b7 {[%clk 0:01:17]}  Rb6 {[%clk 0:00:56]} 33. Qc4+ {[%clk 0:01:17]}  Kf6 {[%clk 0:00:49]} 34. Qc8 {[%clk 0:01:14]}  Re1+ {[%clk 0:00:47]} 35. Kg2 {[%clk 0:01:14]}  Reb1 {[%clk 0:00:47]} 36. Qd8+ {[%clk 0:01:03]}  Kg7 {[%clk 0:00:45]} 37. a5 {[%clk 0:00:56]}  Rxb7 {[%clk 0:00:44]} 38. a6 {[%clk 0:00:57]}  Rb8 {[%clk 0:00:25]} 39. Qe7+ {[%clk 0:00:44]}  Kh6 {[%clk 0:00:20]} 40. a7 {[%clk 0:00:44]}  Ra8 {[%clk 0:00:19]} 41. Qe4 {[%clk 0:00:45]}  Rxa7 {[%clk 0:00:12]} 42. Qxb1 {[%clk 0:00:44]}  Rf7 {[%clk 0:00:09]} 43. Qe4 {[%clk 0:00:44]}  Rf5 {[%clk 0:00:09]} 44. g4 {[%clk 0:00:41]}  Rf7 {[%clk 0:00:08]} 45. f4 {[%clk 0:00:40]}  Kg7 {[%clk 0:00:08]} 46. Qe5+ {[%clk 0:00:40]}  Kg8 {[%clk 0:00:08]} 47. f5 {[%clk 0:00:41]}  gxf5 {[%clk 0:00:07]} 48. gxf5 {[%clk 0:00:42]}  h6 {[%clk 0:00:07]} 49. f6 {[%clk 0:00:41]}  Kh7 {[%clk 0:00:07]} 50. Qe6 {[%clk 0:00:41]}  Kg6 {[%clk 0:00:07]} 51. h4 {[%clk 0:00:29]}  Rxf6 {[%clk 0:00:07]} 52. h5+ {[%clk 0:00:29]}  Kg7 {[%clk 0:00:07]} 53. Qe7+ {[%clk 0:00:29]}  Rf7 {[%clk 0:00:08]} 54. Qe5+ {[%clk 0:00:30]}  Rf6 {[%clk 0:00:08]} 55. Kg3 {[%clk 0:00:30]}  Kf7 {[%clk 0:00:08]} 56. Kg4 {[%clk 0:00:30]}  Re6 {[%clk 0:00:08]} 57. Qc7+ {[%clk 0:00:30]}  Kf6 {[%clk 0:00:08]} 58. Qh7 {[%clk 0:00:29]}  Ke5 {[%clk 0:00:09]} 59. Qf5+ {[%clk 0:00:21]}  Kd6 {[%clk 0:00:09]} 60. Kf4 {[%clk 0:00:21]}  Ke7 {[%clk 0:00:08]} 61. Qh7+ {[%clk 0:00:21]}  Kd6 {[%clk 0:00:09]} 62. Kf5 {[%clk 0:00:21]}  Re5+ {[%clk 0:00:08]} 63. Kg6 {[%clk 0:00:17]}  Re6+ {[%clk 0:00:08]} 64. Kg7 {[%clk 0:00:15]}  Re7+ {[%clk 0:00:07]} 65. Kxh6 {[%clk 0:00:15]}  Rxh7+ {[%clk 0:00:07]} 66. Kxh7 {[%clk 0:00:16]}  Ke6 {[%clk 0:00:07]} 67. Kg7 {[%clk 0:00:17]}  Kf5 {[%clk 0:00:07]} 68. h6 {[%clk 0:00:18]}  Ke6 {[%clk 0:00:08]} 69. h7 {[%clk 0:00:19]}  Ke5 {[%clk 0:00:08]} 70. h8=Q {[%clk 0:00:19]}  Ke6 {[%clk 0:00:08]} 71. Qh6+ {[%clk 0:00:20]}  Ke5 {[%clk 0:00:09]} 72. Qh4 {[%clk 0:00:20]}  Kd5 {[%clk 0:00:10]} 73. Qf4 {[%clk 0:00:20]}  Ke6 {[%clk 0:00:10]} 74. Qg5 {[%clk 0:00:21]}  Kd6 {[%clk 0:00:11]} 75. Qf5 {[%clk 0:00:21]}  Kc6 {[%clk 0:00:11]} 76. Qe5 {[%clk 0:00:22]}  Kd7 {[%clk 0:00:11]} 77. Qf6 {[%clk 0:00:22]}  Kc7 {[%clk 0:00:11]} 78. Qe6 {[%clk 0:00:22]}  Kb7 {[%clk 0:00:12]} 79. Qd6 {[%clk 0:00:23]}  Kc8 {[%clk 0:00:12]} 80. Qe7 {[%clk 0:00:23]}  Kb8 {[%clk 0:00:12]} 81. Kf6 {[%clk 0:00:24]}  Kc8 {[%clk 0:00:13]} 82. Ke6 {[%clk 0:00:25]}  Kb8 {[%clk 0:00:14]} 83. Kd6 {[%clk 0:00:26]}  Ka8 {[%clk 0:00:12]} 84. Kc6 {[%clk 0:00:27]} 1-0


[Site "https://www.chess.com"]